Cogmind - Beta 14 @@@ ROGUE MODE // 2024.08.26 @ 16:49:32 Player: MadBadger Result: Destroyed by G-34 Mercenary with Small Laser Performance ------------- Evolutions (0) 0 Regions Visited (1) 200 Robots Destroyed (16) 80 Value Destroyed (417) 417 Prototype IDs (0) 0 Alien Tech Used (0) 0 Bonus (0) 0 TOTAL SCORE: 697 Bonus ------- None Cogmind --------- Core Integrity 0/250 Matter 300/300 Energy 244/250 System Corruption 0% Temperature Cool (12) Movement Walking (260) Ox2 Location -10/Materials Parts ------- > --- POWER (1) -------- Ion Engine > --- PROPULSION (2) --- Aluminum Leg Aluminum Leg > --- UTILITY (2) ------ High-capacity Storage Unit Targeting Computer > --- WEAPON (2) ------- Small Laser Small Laser > --- INVENTORY (20) --- Flight Unit Sensor Array Terrain Scanner Terrain Scan Processor Peak State ------------ > --- POWER ------------ Ion Engine > --- PROPULSION ------- Light Treads Light Treads > --- UTILITY ---------- Small Storage Unit Targeting Computer > --- WEAPON ----------- EM Pulse Gun EM Shotgun > --- INVENTORY -------- Ion Engine EM Pulse Gun Small Laser [Rating: 8] Favorites ----------- Power Ion Engine Engine Ion Engine Propulsion Light Treads Treads Light Treads Leg Aluminum Leg Flight Unit Flight Unit Utility Targeting Computer Storage High-capacity Storage Unit Processor Targeting Computer Weapon EM Pulse Gun Energy Gun EM Pulse Gun Build | -11 -10 ------- Run | Yrd Mat Slots Evolved . | . . Power . | . . Propulsion . | . . Utility . | . . Weapon . | . . Parts Attached 16 | 6 10 Power 2 | 1 1 Engine 2 | 1 1 Core . | . . Reactor . | . . Propulsion 5 | 2 3 Treads 2 | 2 . Leg 2 | . 2 Wheel . | . . Hover . | . . Flight 1 | . 1 Utility 3 | 1 2 Device . | . . Storage 2 | 1 1 Processor 1 | . 1 Hackware . | . . Protection . | . . Artifact . | . . Weapon 6 | 2 4 Energy Gun 6 | 2 4 Energy Cannon . | . . Ballistic Gun . | . . Ballistic Cannon . | . . Launcher . | . . Special Weapon . | . . Impact Weapon . | . . Slashing Weapon . | . . Piercing Weapon . | . . Special Melee Weapon . | . . Unidentified Prototypes . | . . Parts Lost 6 | . 6 Power 1 | . 1 Propulsion 2 | . 2 Utility . | . . Weapon 3 | . 3 Highest Loss Streak 3 | . 3 To Critical Strikes 1 | . 1 Average Slot Usage (%) 92 | . 92 Engine 11 | . 11 Treads 19 | . 19 Leg 3 | . 3 Flight 1 | . 1 Storage 14 | . 14 Processor 13 | . 13 Energy Gun 27 | . 27 Peak Build Rating 8 | 6 8 Average Rating 6 | 4 7 On Entrance 3 | . 6 Naked Turns . | . . Heaviest Build 50 | 14 50 Greatest Support 40 | 40 40 Greatest Overweight (x) 16 | . 16 Average Overweight (x) 1 | . 1 Largest Inventory Capacity 20 | 8 20 Average Capacity 18 | 6 19 Most Carried 5 | 2 5 Average Carried 3 | 1 4 Final Capacity 20 | 8 20 Final Carried 4 | 2 4 Class Distribution -------------------- 100% | Mutant Dominant Class ---------------- Mutant | -10/Materials Resources | -11 -10 ----------- Run | Yrd Mat Matter Collected 360 | 245 115 Remotely . | . . Salvage Created 565 | . 565 Parts 40 | . 40 Haulers Intercepted . | . . Recyclers Shooed . | . . Parts Field Recycled . | . . Retrieved Matter . | . . Parts Self-Destructed . | . . Prevented . | . . Kills | -11 -10 ------- Run | Yrd Mat Combat Hostiles Destroyed 12 | . 12 Guns 11 | . 11 Classes Destroyed 6 | . 6 Worker 1 | . 1 Builder 1 | . 1 Watcher 2 | . 2 Swarmer 2 | . 2 Grunt 9 | . 9 Subdweller 1 | . 1 Best Kill Streak 3 | . 3 Combat Bots Only 3 | . 3 Max Kills in Single Turn 2 | . 2 Gunslinging . | . . Exploded . | . . Melee . | . . Uniques/NPCs Destroyed . | . . Combat | -11 -10 -------- Run | Yrd Mat Hostile Shots Fired 94 | . 94 Missed 31 | . 31 Damage Taken 814 | . 814 Core 251 | . 251 Absorbed by Shields . | . . Core Remaining (%) 100 | 100 . Volleys Fired 36 | . 36 Largest 2 | . 2 Hottest 85 | . 85 Shots Fired 63 | . 63 Gun 63 | . 63 Cannon . | . . Launcher . | . . Special . | . . Kinetic . | . . Thermal 10 | . 10 Explosive . | . . Electromagnetic 53 | . 53 Robot Hit Streak 13 | . 13 Robot Miss Streak 6 | . 6 Penetration Max . | . . Secondary Targets . | . . Shots Hit Robots 42 | . 42 Core Hits 26 | . 26 Critical Kills . | . . Critical Parts Destroyed . | . . Critical Strikes 2 | . 2 Corrupt 2 | . 2 Melee Attacks . | . . Impact . | . . Slashing . | . . Piercing . | . . Sneak Attacks . | . . Combat Hostiles . | . . Follow-up Attacks . | . . Damage Inflicted 599 | . 599 Guns 599 | . 599 Cannons . | . . Explosions . | . . Melee . | . . Ramming . | . . Kinetic . | . . Thermal 80 | . 80 Explosive . | . . Electromagnetic 519 | . 519 Impact . | . . Slashing . | . . Piercing . | . . Highest Corruption . | . . Average Corruption . | . . Corruption Purged . | . . Corruption Blocked . | . . Overload Shots . | . . Overflow Damage . | . . Projectiles . | . . Explosions . | . . Melee . | . . Knockbacks . | . . Impact . | . . Kinetic . | . . Secondary . | . . Self-Inflicted Damage . | . . Shots . | . . Rammed . | . . Targets Rammed . | . . Kicked . | . . Crushed . | . . Highest Temperature 118 | . 118 Average Temperature 37 | . 37 Received Heat Transfer 315 | . 315 Siege Activations . | . . Robots Corrupted 1 | . 1 Combat Hostiles 1 | . 1 Parts Fried 3 | . 3 Impact Corruptions . | . . Robots Melted . | . . Combat Hostiles . | . . Parts Melted . | . . Heat Transferred 175 | . 175 Parts Sabotaged . | . . Parts Stolen . | . . Parts Stripped . | . . Power Chain Reactions . | . . Alert | -11 -10 ------- Run | Yrd Mat Peak Influence 167 | . 167 Initial . | . . Average 57 | . 62 Maximum Alert Level . | . . Low Security (%) 100 | 100 100 Level 1 . | . . Level 2 . | . . Level 3 . | . . Level 4 . | . . Level 5 . | . . High Security . | . . Max Security . | . . Squads Dispatched 3 | . 3 Investigation 3 | . 3 Extermination . | . . Reinforcement . | . . Assault . | . . Garrison . | . . Intercept . | . . Searches Triggered . | . . Construction Impeded . | . . Haulers Reinforced . | . . Active Scanning Responses . | . . Cargo Convoy Interrupts . | . . Stealth | -11 -10 --------- Run | Yrd Mat Distress Signals 4 | . 4 Communications Jammed . | . . Distress Signals . | . . Times Spotted 24 | . 24 Peak Tracking Total 5 | . 5 Tactical Retreats 4 | . 4 Traps | -11 -10 ------- Run | Yrd Mat Traps Triggered 1 | . 1 Indirectly . | . . Trap Hack Attempts . | . . Triggered . | . . Disarmed . | . . Reprogrammed . | . . Reused . | . . Traps Extracted . | . . Installed . | . . Triggered . | . . Machines | -11 -10 ---------- Run | Yrd Mat Machines Disabled . | . . Max in Single Turn . | . . Machines Repaired . | . . Machines Dismantled . | . . Machines Sabotaged . | . . Overloaded Fab Kills . | . . Hacking | -11 -10 --------- Run | Yrd Mat Machines Accessed 1 | . 1 Terminals 1 | . 1 Fabricators . | . . Repair Stations . | . . Recycling Units . | . . Scanalyzers . | . . Garrison Access . | . . Total Hacks 4 | . 4 Successful 2 | . 2 Failed 2 | . 2 Catastrophic . | . . Database Lockouts . | . . Manual . | . . Terminals 4 | . 4 Fabricators . | . . Repair Stations . | . . Recycling Units . | . . Scanalyzers . | . . Garrison Access . | . . Terminal Hacks 2 | . 2 Hauler Manifests 1 | . 1 Registered Components 1 | . 1 Fabricator Hacks . | . . Repair Station Hacks . | . . Recycling Unit Hacks . | . . Scanalyzer . | . . Garrison Access Hacks . | . . Unauthorized Hacks . | . . Terminals . | . . Fabricators . | . . Repair Stations . | . . Recycling Units . | . . Scanalyzers . | . . Garrison Access . | . . Data Cores Recovered . | . . Used . | . . Hacking Detections 1 | . 1 Full Trace Events 1 | . 1 Feedback Events . | . . Feedback Blocked . | . . Robot Schematics Acquired . | . . Robots Built . | . . Authchips . | . . Time . | . . Total Robot Build Rating . | . . Part Schematics Acquired . | . . Parts Built . | . . Authchips . | . . Time . | . . Total Part Build Rating . | . . Parts Repaired . | . . Time . | . . Parts Recycled . | . . Recycled Matter . | . . Retrieved Matter . | . . Retrieved Components . | . . Parts Scanalyzed . | . . Part Schematics Acquired . | . . Parts Damaged . | . . Bothacking | -11 -10 ------------ Run | Yrd Mat Used RIF Installer . | . . Robots Hacked . | . . Non-combat . | . . Combat . | . . Robot Hacks Applied . | . . Relay Couplers Released . | . . Fabnet Peak Effective % . | . . Robots Rewired . | . . Allies Hacked . | . . Hacks Repelled . | . . Allies | -11 -10 -------- Run | Yrd Mat Total Allies . | . . Largest Group . | . . Highest-Rated Group . | . . Highest-Rated Ally . | . . Total Orders . | . . Ally Attacks . | . . Total Damage . | . . Kills . | . . Allies Corrupted . | . . Allies Melted . | . . Intel | -11 -10 ------- Run | Yrd Mat Robot Analysis Total . | . . Derelict Logs Recovered . | . . Drone Launches . | . . Drone Recoveries . | . . Exploration | -11 -10 ------------- Run | Yrd Mat Turns Passed 1669 | 121 1548 Spaces Moved 611 | 71 540 Core 14 | 2 12 Treads 506 | 69 437 Legs 73 | . 73 Wheels . | . . Hover . | . . Flight 18 | . 18 Fastest Speed 50 | 50 160 Average Speed 251 | 156 263 Slowest Speed 850 | 160 850 Overloaded Moves . | . . Propulsion Burnouts . | . . Robots Hopped . | . . Cave-ins Triggered . | . . Exploration Rate (%) 31 | 4 58 Regions Visited 1 Branch Regions . Pre-discovered Areas . | . . Known Exits Taken . | . . Unknown Exits Taken 1 | 1 . Scrap Searched . | . . Spaces Dug . | . . Terrain Destroyed . | . . Melee . | . . Projectile . | . . AOE . | . . Terrain Rammed . | . . Walls Destroyed . | . . Machines Disabled . | . . Actions | -11 -10 --------- Run | Yrd Mat Total 679 | 78 601 Wait 10 | . 10 Move 610 | 70 540 Hop . | . . Pick Up 5 | 2 3 Fast Attach 11 | 6 5 Attach 3 | . 3 Detach 1 | . 1 Swap 2 | . 2 Drop 1 | . 1 Fire 36 | . 36 Melee . | . . Ram . | . . Kick . | . . Crush . | . . Escape Stasis . | . . Rewire . | . . Trap . | . . Miscellaneous . | . . Route ------- -11/Scrapyard -10/Materials (discovered 1 exit: [*Mat]) History --------- Turn | Location | Event 7 | -11/Scrapyard | Discovered new exit (range 15) 122 | -11/Scrapyard | Entered Materials 302 | -10/Materials | Build established: Mutant 822 | -10/Materials | Derelicts attacked the area 896 | -10/Materials | Discovered new exit (range 8) 1214 | -10/Materials | Core integrity fell below 50% 1276 | -10/Materials | Core integrity fell below 20% 1304 | -10/Materials | Lost 3 parts (1p2w) 1670 | -10/Materials | Destroyed by G-34 Mercenary with Small Laser Last Messages --------------- 01487_ Acquired 9 matter. 01506_ Acquired 6 matter. 01511_ Extracted 5 matter. 01548_ Acquired 10 matter. 01573_ R-06 Scavenger collects Heat Sink. 01576_ R-06 Scavenger collects Corrupted Sml. Laser. 01581_ R-06 Scavenger collects Sml. Laser. 01584_ R-06 Scavenger collects Aluminum Leg. 01638_ W-16 Scout sends out distress signal. 01639_ K-01 Serf destroyed. 01641_ K-01 Serf collects debris. 01641_ R-06 Scavenger inserts Heat Sink into recycling unit. 01644_ R-06 Scavenger inserts Corrupted Sml. Laser into recycling unit. 01645_ Recycling unit begins recycling process. 01646_ K-01 Serf collects debris. 01647_ R-06 Scavenger inserts Sml. Laser into recycling unit. 01650_ K-01 Serf collects debris. 01650_ R-06 Scavenger inserts Aluminum Leg into recycling unit. 01654_ K-01 Serf collects debris. 01655_ K-01 Serf destroyed. Map ----- +----------------------------------------------------+ | ????????????????# ## #???????????????????? | | ????????????????############ #??????#######??????? | | ???????????????????????????# #??????# ######## | | ???????????????????????????#*######## | | ???????????????????????????# ######## | | ???????????????????????????#%######## #??????? | | ???????????????????????????#*#??????# #??????? | | ???????????????????????????#+######### ######### | | ???????????????????????????#% # # | | ???????????????????????????# [ +% + | | ??????????????????????##+#?# # # | | ??????????????????????# ?# # # """ """ | | ????????????????####### ## """ """ # # """"""" | | ???????????????? ## """ """ # # """ """ | | ????????????????? ## """ """ # # | | ????????????????""" ## # # | | ?????????????"??""" """ ############ ######### | | ???????????""" """ Y" ############ #???????? | | ??????????* """ = !% #???????? | | ?????????? %* = %#???????? | | ?????????? =%! #???????? | | ?????????????# ########g############ ######### | | ????????????????????????# #??????????# | | ????????????????????????# #??????????# | | ????????????????????????# #??????????# % | | ????????????????????????#@#??????????# %##/###### | | ????????????????????????# #?########## # ## | | ????????????????????????# #?# # # T# | | ????????????????????????# #?# """ # # """ ## | | ????????????????????????# #?# "T # # """ #? | | ????????????????????????# #?# # # "" #? | | ????????????????????????# ### # # #? | | ????????????????????????# + !!! # ##+#####? | | ????????????????????????# ### !!! # ###### | | ????????????????????????# #?# !%% =# # # | | ????????????????????????# #?# [%% # # " | | ????????????????????????# #?######/### # T | | ????????????????????????# #?????#[=*&[ # !!!" | | ????????????????????????# ####### *[& != # !! # | | ????????????????????????# !=%!* = + !! # | | ????????????????????????# %